bitfinex/quotes_BTCUSD_20250830
["timestamp","ask_amount","ask_price","bid_price","bid_amount"]
[1756564042483,0.910111,108700.0,108690.0,0.61356956]
[1756564042816,0.910111,108700.0,108690.0,0.42956]
[1756564043037,0.912091,108700.0,108690.0,0.42956]
[1756564046751,0.89484114,108700.0,108690.0,0.42956]
[1756564046960,0.91210119,108700.0,108690.0,0.42956]
[1756564048575,0.90036898,108700.0,108690.0,0.61356956]
[1756564049041,0.90234898,108700.0,108690.0,0.61356956]
[1756564049285,0.90882665,108700.0,108690.0,0.42956]
[1756564050234,0.21354237,108700.0,108690.0,0.61356956]
[1756564050424,0.90684665,108700.0,108690.0,0.61356956]
[1756564050577,0.90684662,108700.0,108690.0,0.61356956]
[1756564052222,0.90882662,108700.0,108690.0,0.42956]
[1756564053341,0.90684662,108700.0,108690.0,0.61356956]
[1756564054362,0.90882662,108700.0,108690.0,0.61356956]
[1756564054750,0.90882662,108700.0,108690.0,0.42956]
[1756564057503,0.90234898,108700.0,108690.0,0.42956]
[1756564057727,0.90884167,108700.0,108690.0,0.42956]
[1756564058179,0.21553739,108700.0,108690.0,0.42956]
[1756564058394,0.90884167,108700.0,108690.0,0.42956]
[1756564061472,0.56218953,108700.0,108690.0,0.42956]
[1756564061650,0.21355739,108700.0,108690.0,0.42956]
[1756564061865,0.90686167,108700.0,108690.0,0.42956]
[1756564062555,0.90686167,108700.0,108690.0,0.61356956]
[1756564063147,0.90686167,108700.0,108690.0,0.42956]
[1756564063795,0.90884167,108700.0,108690.0,0.2691]
[1756564063998,0.90884167,108700.0,108690.0,0.42442]
[1756564064534,0.90884167,108700.0,108690.0,0.2691]
[1756564064756,0.90884167,108700.0,108680.0,0.3754735]
[1756564064757,0.18400956,108690.0,108680.0,0.07076]
[1756564065165,0.92306197,108690.0,108680.0,0.22644]
[1756564065410,0.90315658,108690.0,108680.0,0.22644]
[1756564065624,0.93082458,108690.0,108680.0,0.22644]
[1756564068309,0.93081009,108690.0,108680.0,0.22644]
[1756564068536,0.23750581,108690.0,108680.0,0.23159]
[1756564068750,0.58415795,108690.0,108680.0,0.23159]
[1756564068998,0.40014839,108690.0,108680.0,0.23159]
[1756564069168,0.58415795,108690.0,108680.0,0.23159]
[1756564069385,0.57768388,108690.0,108680.0,0.23159]
[1756564069888,0.57768388,108690.0,108680.0,0.22652]
[1756564069889,1.27080831,108690.0,108680.0,0.22652]
[1756564071482,1.2712856,108690.0,108680.0,0.22652]
[1756564072421,1.2712856,108690.0,108680.0,0.22976]
[1756564075183,1.27127149,108690.0,108680.0,0.22976]
[1756564076101,1.27127149,108690.0,108680.0,0.49886]
[1756564077130,1.27127149,108690.0,108680.0,0.50095]
[1756564078797,1.24754913,108690.0,108680.0,0.50095]
[1756564078984,1.27126401,108690.0,108680.0,0.50095]
[1756564080364,1.27126401,108690.0,108680.0,0.50087]
[1756564084141,0.92917401,108690.0,108680.0,0.50087]
[1756564084342,0.00047729,108690.0,108680.0,1.12452864]
[1756564084518,0.00047729,108690.0,108680.0,1.15219164]
[1756564084936,0.00047729,108690.0,108680.0,1.40219164]
[1756564086083,0.00047729,108690.0,108680.0,1.0555395]
[1756564086287,0.00047729,108690.0,108680.0,1.40219164]
[1756564086474,0.00047729,108690.0,108680.0,1.74884378]
[1756564086796,0.00047729,108690.0,108680.0,1.40219164]
[1756564087322,0.00047729,108690.0,108680.0,1.40519164]
[1756564087499,0.00047729,108690.0,108680.0,1.40719164]
[1756564088307,0.34712943,108690.0,108680.0,1.0605395]
[1756564092837,0.34712943,108690.0,108680.0,1.10124057]
[1756564093245,0.34712943,108690.0,108680.0,1.09824057]
[1756564093402,0.34712943,108690.0,108680.0,1.09924057]
[1756564094317,0.00047729,108690.0,108680.0,1.09724057]
[1756564094575,0.34712943,108690.0,108680.0,1.09724057]
[1756564097157,0.34712943,108690.0,108680.0,1.09624057]
[1756564097667,0.34712943,108690.0,108680.0,1.10124057]
[1756564108092,0.34712943,108690.0,108680.0,1.0605395]
[1756564113437,0.34712943,108690.0,108680.0,0.9048595]
[1756564113635,0.34712943,108690.0,108680.0,1.0602595]
[1756564114045,0.00047729,108690.0,108680.0,1.0602595]
[1756564114249,0.34712943,108690.0,108680.0,1.0602595]
[1756564114653,0.00047729,108690.0,108680.0,1.0602595]
[1756564114912,0.00047729,108690.0,108680.0,1.42785046]
[1756564115111,0.00047729,108690.0,108680.0,1.47752934]
[1756564115887,0.00047729,108690.0,108680.0,1.7745026]
[1756564116114,0.00047729,108690.0,108680.0,2.1145026]
[1756564119284,0.00047729,108690.0,108680.0,2.16407133]
[1756564126720,0.34665214,108720.0,108710.0,0.18397571]
[1756564126943,0.34669984,108720.0,108710.0,0.76676642]
[1756564127124,0.34867984,108720.0,108710.0,0.76676642]
[1756564128078,0.69633198,108720.0,108710.0,0.79438242]
[1756564128506,0.69633198,108720.0,108710.0,0.80397548]
[1756564128915,0.69633198,108720.0,108710.0,0.88918242]
[1756564129131,0.69633198,108720.0,108710.0,1.04438242]
[1756564129359,0.69733198,108720.0,108710.0,1.04438242]
[1756564130601,0.69733198,108720.0,108710.0,1.05373416]
[1756564131373,0.69733198,108720.0,108710.0,0.89853416]
[1756564131578,0.69733198,108720.0,108710.0,0.88918242]
[1756564131782,0.69733198,108720.0,108710.0,1.04438242]
[1756564136934,0.69733198,108720.0,108710.0,1.04759242]
[1756564137118,0.69733198,108720.0,108710.0,1.04969242]
[1756564139698,0.34869984,108720.0,108710.0,1.04969242]
[1756564141753,0.69535198,108720.0,108710.0,1.04969242]
[1756564142694,0.34869984,108720.0,108710.0,1.04969242]
[1756564143103,0.34869984,108720.0,108710.0,1.09181222]
[1756564153068,0.34869984,108720.0,108710.0,1.04969242]
[1756564154231,0.0020477,108720.0,108710.0,1.04969242]
[1756564154457,0.34869984,108720.0,108710.0,1.04969242]
[1756564156733,0.0020477,108720.0,108710.0,1.04969242]
[1756564156953,0.34869984,108720.0,108710.0,1.04969242]
[1756564157696,0.34869984,108720.0,108710.0,1.09051074]
[1756564159004,0.34869984,108720.0,108710.0,1.53081074]
[1756564160618,0.34869984,108720.0,108710.0,1.53069074]
[1756564161369,0.0020477,108720.0,108710.0,1.53069074]
[1756564161569,0.34669984,108720.0,108710.0,1.53069074]
[1756564163474,4.77e-05,108720.0,108710.0,1.53069074]
[1756564163698,0.34669984,108720.0,108710.0,1.53069074]
[1756564167342,4.77e-05,108720.0,108710.0,1.53069074]
[1756564167476,0.34669984,108720.0,108710.0,1.53069074]
[1756564168015,4.77e-05,108720.0,108710.0,1.53069074]
[1756564168244,0.34669984,108720.0,108710.0,1.53069074]
[1756564168533,4.77e-05,108720.0,108710.0,1.87734288]
[1756564169053,4.77e-05,108720.0,108710.0,1.8982817]
[1756564169265,0.34685214,108740.0,108720.0,0.44772179]
[1756564169472,0.34685214,108740.0,108730.0,0.50804115]
[1756564169473,0.34689986,108740.0,108730.0,0.50804115]
[1756564169675,0.695532,108740.0,108730.0,0.50574188]
[1756564170323,0.34887986,108740.0,108730.0,0.76950488]
[1756564170528,0.00522772,108740.0,108730.0,0.79923688]
[1756564170733,0.00324772,108740.0,108730.0,0.79923688]
[1756564170951,0.34989986,108740.0,108730.0,0.79923688]
[1756564171796,0.34689986,108740.0,108730.0,0.79923688]
[1756564171969,0.34689986,108740.0,108730.0,1.04923688]
[1756564173109,0.00024772,108740.0,108730.0,0.89419688]
[1756564173314,0.00024772,108740.0,108730.0,1.39588902]
[1756564174378,0.00024772,108740.0,108730.0,1.41682784]
[1756564174592,0.00024772,108740.0,108730.0,0.9151357]
[1756564174796,0.00024772,108740.0,108730.0,1.0701757]
[1756564176869,0.34685214,108750.0,108740.0,0.44744023]
[1756564177105,0.34685214,108750.0,108740.0,0.69768024]
[1756564177310,0.34685214,108750.0,108740.0,0.69976024]
[1756564177493,0.34685214,108750.0,108740.0,0.72740724]
[1756564177696,0.0002,108750.0,108740.0,0.72740724]
[1756564177900,0.34685214,108750.0,108740.0,0.97740724]
[1756564178874,0.34785214,108750.0,108740.0,0.97740724]
[1756564179102,0.34885214,108750.0,108740.0,0.97740724]
[1756564180735,0.35083214,108750.0,108740.0,0.82236724]
[1756564180935,0.35083214,108750.0,108740.0,0.81726724]
[1756564181234,0.35083214,108750.0,108740.0,0.97528724]
[1756564182882,0.35083214,108750.0,108740.0,0.97608724]
[1756564183509,0.35083214,108750.0,108740.0,0.97816724]
[1756564184946,0.0022,108750.0,108740.0,0.97816724]
[1756564185171,0.35083214,108750.0,108740.0,0.97816724]
[1756564187884,0.15040249,108750.0,108740.0,0.97816724]
[1756564188286,0.15040249,108750.0,108740.0,0.82316724]
[1756564188587,0.14842249,108750.0,108740.0,0.97816724]
[1756564192148,0.53074375,108760.0,108750.0,0.18390804]
[1756564192350,0.53074375,108760.0,108750.0,0.50256805]
[1756564192351,0.8774436,108760.0,108750.0,0.50256805]
[1756564192562,0.8794236,108760.0,108750.0,0.50256805]
[1756564193631,0.8814236,108760.0,108750.0,0.50256805]
[1756564194776,0.8814236,108760.0,108750.0,0.76608333]
[1756564197143,0.18811932,108760.0,108750.0,0.76608333]
[1756564197318,0.8814236,108760.0,108750.0,0.76608333]
[1756564199909,0.8814236,108760.0,108750.0,0.58217529]
[1756564200126,0.8814236,108760.0,108750.0,0.76608333]
[1756564200574,0.8814236,108760.0,108750.0,0.42721529]
[1756564200750,0.8814236,108760.0,108750.0,0.58217529]
[1756564201300,0.89868311,108760.0,108750.0,0.76608333]
[1756564201563,0.89868311,108760.0,108750.0,0.76929333]
[1756564201768,0.01950722,108760.0,108750.0,0.77138333]
[1756564201953,0.34889985,108760.0,108750.0,0.77138333]
[1756564202199,0.00224771,108760.0,108750.0,1.11803547]
[1756564202401,0.00024771,108760.0,108750.0,1.11803547]
[1756564202602,0.00024771,108760.0,108750.0,1.14668047]
[1756564203533,0.00024771,108760.0,108750.0,0.80002833]
[1756564203750,0.00024771,108760.0,108750.0,1.39668047]
[1756564203942,0.00024771,108760.0,108750.0,1.39664047]
[1756564204142,0.00024771,108760.0,108750.0,1.04998833]
[1756564204875,0.34689985,108760.0,108750.0,1.04998833]
[1756564206271,0.34689985,108760.0,108750.0,0.89506833]
[1756564206472,0.34689985,108760.0,108750.0,1.04998833]
[1756564206805,0.34689985,108760.0,108750.0,1.49028833]
[1756564213658,0.34689985,108760.0,108750.0,1.33536833]
[1756564213866,0.34689985,108760.0,108750.0,1.49024833]
[1756564214091,0.34689985,108760.0,108750.0,1.33536833]
[1756564214303,0.00024771,108760.0,108750.0,1.49024833]
[1756564214543,0.34689985,108760.0,108750.0,1.49024833]
[1756564218006,0.00024771,108760.0,108750.0,1.49024833]
[1756564218771,0.34689985,108760.0,108750.0,1.49024833]
[1756564223151,0.00024771,108760.0,108750.0,1.49024833]
[1756564223358,0.34689985,108760.0,108750.0,1.49024833]
[1756564227350,0.34689985,108760.0,108750.0,1.52328751]
[1756564229667,0.00024771,108760.0,108750.0,1.52328751]
[1756564231422,0.00024771,108760.0,108750.0,1.89087847]
[1756564233028,0.00024771,108760.0,108750.0,1.9404472]
[1756564234109,0.00024771,108760.0,108750.0,1.5001472]
[1756564234510,0.00024771,108760.0,108750.0,1.45057847]
[1756564234911,0.00024771,108760.0,108750.0,1.5001472]
[1756564235316,0.00024771,108760.0,108750.0,1.46710802]
[1756564236319,0.00024771,108760.0,108750.0,1.46610802]
[1756564236718,0.00024771,108760.0,108750.0,1.46810802]
[1756564236977,0.00024771,108760.0,108750.0,1.80810802]
[1756564237751,0.00024771,108760.0,108750.0,1.85002046]
[1756564238039,0.00024771,108760.0,108750.0,1.85102046]
[1756564238479,0.00024771,108760.0,108750.0,2.1976726]
[1756564238630,0.00024771,108760.0,108750.0,1.84802046]
[1756564238832,0.00024771,108760.0,108750.0,1.85045173]
[1756564239071,0.00024771,108760.0,108750.0,2.09765173]
[1756564239309,0.00024771,108760.0,108750.0,2.03836835]
[1756564239689,0.00024771,108760.0,108750.0,1.63836835]
[1756564240282,0.00024771,108760.0,108750.0,2.03836835]
[1756564240483,0.00024771,108760.0,108750.0,1.98893645]
[1756564241425,0.00024771,108760.0,108750.0,2.03835052]
[1756564242154,0.0002,108770.0,108760.0,0.18389113]
[1756564242364,0.0002,108770.0,108760.0,1.2073266]
[1756564242566,0.0002,108770.0,108760.0,1.2124966]
[1756564242768,0.0002,108770.0,108760.0,1.2401336]
[1756564243208,0.0002,108770.0,108760.0,1.6301336]
[1756564243418,0.0002,108770.0,108760.0,1.59719313]
[1756564243635,0.0002,108770.0,108760.0,1.59919313]
[1756564243796,0.0002,108770.0,108760.0,1.61764313]
[1756564244199,0.0002,108770.0,108760.0,2.32145841]
[1756564245017,0.0002,108770.0,108760.0,2.57245841]
[1756564245418,0.0004,108780.0,108770.0,0.23387423]
[1756564245615,0.0004,108780.0,108770.0,1.6357001]
[1756564245893,0.0004,108780.0,108770.0,1.6408701]
[1756564246098,0.0004,108780.0,108770.0,1.6685041]
[1756564246865,0.0004,108780.0,108770.0,1.6715041]
[1756564247917,0.0004,108780.0,108770.0,1.9215041]
[1756564248291,0.0004,108780.0,108770.0,1.9245041]
[1756564250186,0.0004,108780.0,108770.0,1.57785196]
[1756564250423,0.0004,108780.0,108770.0,1.9245041]
[1756564250633,0.0004,108780.0,108770.0,2.2645041]
[1756564250841,0.0004,108780.0,108770.0,2.28101637]
[1756564251232,0.0002,108790.0,108780.0,0.18385732]
[1756564251441,0.0002,108790.0,108780.0,1.16099431]
[1756564251642,0.0002,108790.0,108780.0,1.16311431]
[1756564251871,0.0023,108800.0,108790.0,0.52384042]
[1756564252074,0.00277721,108800.0,108790.0,1.22504527]
[1756564252278,0.00277721,108800.0,108790.0,1.22716527]
[1756564252656,0.00277721,108800.0,108790.0,1.29672256]
[1756564253053,0.00277721,108800.0,108790.0,1.54672256]
[1756564253487,0.00277721,108800.0,108790.0,1.5455027]
[1756564253619,0.00277721,108800.0,108790.0,1.20003042]
[1756564254037,0.00277721,108800.0,108790.0,1.20303042]
[1756564254238,0.00277721,108800.0,108790.0,1.20603042]
[1756564254485,0.00277721,108800.0,108790.0,1.17315772]
[1756564255351,0.00277721,108800.0,108790.0,1.18239733]
[1756564256970,0.34563228,108810.0,108790.0,1.18239733]
[1756564256971,0.08489421,108810.0,108800.0,0.20476234]
[1756564257180,0.00211162,108810.0,108800.0,0.89276235]
[1756564257590,0.00211162,108810.0,108800.0,0.92039135]
[1756564258941,0.00211162,108810.0,108800.0,1.17239135]
[1756564259075,0.00211162,108810.0,108800.0,1.17439135]
[1756564260255,0.00211162,108810.0,108800.0,1.02289135]
[1756564260460,0.00211162,108810.0,108800.0,1.17757135]
[1756564260683,0.00211162,108810.0,108800.0,1.17435135]
[1756564260910,0.00211162,108810.0,108800.0,1.17757135]
[1756564262887,0.00211162,108810.0,108800.0,1.44879135]
[1756564268175,0.34543228,108820.0,108810.0,0.18380663]
[1756564268324,0.34543228,108820.0,108810.0,0.50214664]
[1756564268525,0.20394739,108830.0,108810.0,0.50214664]
[1756564268725,0.2211448,108830.0,108820.0,0.24762001]
[1756564270000,0.56657708,108830.0,108820.0,0.24762001]
[1756564271022,0.56526708,108830.0,108820.0,0.24762001]
[1756564271565,0.56526708,108830.0,108820.0,0.28831012]
[1756564273356,0.56526708,108830.0,108820.0,0.13367012]
[1756564273561,0.56526708,108830.0,108820.0,0.28831012]
[1756564274371,0.2198348,108830.0,108820.0,0.28831012]
[1756564274568,0.21064604,108830.0,108820.0,0.47209986]
[1756564274785,0.55607832,108830.0,108820.0,0.55741012]
[1756564275187,0.55607832,108830.0,108820.0,0.40277012]
[1756564275451,0.55607832,108830.0,108820.0,0.55741012]
[1756564275452,0.55605496,108830.0,108820.0,0.55741012]
[1756564275657,0.21064604,108830.0,108820.0,0.55741012]
[1756564275867,0.55605496,108830.0,108820.0,0.55741012]
[1756564276217,0.55608001,108830.0,108820.0,0.55741012]
[1756564276807,0.53885755,108830.0,108820.0,0.55741012]
[1756564277016,0.55608043,108830.0,108820.0,0.55741012]
[1756564279059,0.56254242,108830.0,108820.0,0.55741012]
[1756564281996,0.2171335,108830.0,108820.0,0.56040012]
[1756564282273,0.56254242,108830.0,108820.0,0.56040012]
[1756564285818,0.2171335,108830.0,108820.0,0.74631986]
[1756564286080,0.56254242,108830.0,108820.0,0.74631986]
[1756564286267,0.2171335,108830.0,108820.0,0.74631986]
[1756564286484,0.56254242,108830.0,108820.0,0.74631986]
[1756564286930,0.56258534,108830.0,108820.0,0.74631986]
[1756564287430,0.56258461,108830.0,108820.0,0.74631986]
[1756564287656,0.54532876,108830.0,108820.0,0.74631986]
[1756564287868,0.56258461,108830.0,108820.0,0.74631986]
[1756564288110,0.56258461,108830.0,108820.0,0.70562975]
[1756564288328,0.21070448,108830.0,108820.0,0.70562975]
[1756564288542,0.5561134,108830.0,108820.0,0.70562975]
[1756564289011,0.21070448,108830.0,108820.0,0.70562975]
[1756564289422,0.5561134,108830.0,108820.0,0.70562975]
[1756564289884,0.5561134,108830.0,108820.0,0.52184001]
[1756564290074,0.5561134,108830.0,108820.0,0.70562975]
[1756564290429,0.21070448,108830.0,108820.0,0.70562975]
[1756564290655,0.5561134,108830.0,108820.0,0.70562975]
[1756564291321,0.5561134,108830.0,108820.0,0.52184001]
[1756564292183,0.5561134,108830.0,108820.0,0.52284001]
[1756564292696,0.5561134,108830.0,108820.0,0.52276001]
[1756564294936,0.21070448,108830.0,108820.0,0.36607001]
[1756564295166,1.24152232,108830.0,108820.0,0.001]
[1756564295390,1.24799278,108830.0,108820.0,0.15556]
[1756564295632,1.27562578,108830.0,108820.0,0.15556]
[1756564296525,1.27562578,108830.0,108820.0,0.15456]
[1756564297412,0.18378974,108820.0,108810.0,0.33978]
[1756564297646,0.89185373,108820.0,108810.0,0.58732001]
[1756564297843,0.89185373,108820.0,108810.0,0.59244001]
[1756564298520,0.89185373,108820.0,108810.0,0.32334001]
[1756564299150,0.20103589,108820.0,108810.0,0.32334001]
[1756564299373,0.89185373,108820.0,108810.0,0.32334001]
[1756564300425,0.87460758,108820.0,108810.0,0.32434001]
[1756564303272,0.87460758,108820.0,108810.0,0.50814664]
[1756564303791,0.34540892,108820.0,108810.0,0.50814664]
[1756564304297,0.52397285,108830.0,108820.0,0.18378974]
[1756564304545,0.86938177,108830.0,108820.0,0.28188975]
[1756564305525,0.34558945,108830.0,108820.0,0.28188975]
[1756564305741,0.5293623,108830.0,108820.0,0.28188975]
[1756564308025,0.5293623,108830.0,108820.0,0.09810001]
[1756564308483,0.5293623,108830.0,108820.0,0.09298001]
[1756564308730,0.54659439,108830.0,108820.0,0.24754001]
[1756564308983,0.18378974,108820.0,108810.0,0.32367]
[1756564309207,0.52917919,108820.0,108810.0,0.32121001]
[1756564309430,0.52917919,108820.0,108810.0,0.32321001]
[1756564310587,0.52917919,108820.0,108810.0,0.32421001]
[1756564313178,0.52917919,108820.0,108810.0,0.16965001]
[1756564313327,0.52917919,108820.0,108810.0,0.32421001]
[1756564313945,0.52917919,108820.0,108810.0,0.16965001]
[1756564314191,0.52917919,108820.0,108810.0,0.32421001]
[1756564314597,0.48917919,108820.0,108810.0,0.32421001]
[1756564314804,0.48917919,108820.0,108810.0,0.16965001]
[1756564315012,0.48917919,108820.0,108810.0,0.32421001]
[1756564315373,0.48917919,108820.0,108810.0,0.16965001]
[1756564315554,0.48917919,108820.0,108810.0,0.32421001]
[1756564316727,0.48917919,108820.0,108810.0,0.36599295]
[1756564317456,0.48917919,108820.0,108810.0,0.36100295]
[1756564317879,0.48917919,108820.0,108810.0,0.36422295]
[1756564318512,0.51681219,108820.0,108810.0,0.36622295]
[1756564319389,0.51681219,108820.0,108810.0,0.63532295]
[1756564319989,0.51681219,108820.0,108810.0,0.48076295]
[1756564320224,0.51681219,108820.0,108810.0,0.63528295]
[1756564323331,0.53405022,108820.0,108810.0,0.63528295]
[1756564323902,0.51681219,108820.0,108810.0,0.63528295]
[1756564324632,0.53405154,108820.0,108810.0,0.63528295]
[1756564325667,0.53405154,108820.0,108810.0,0.48076295]
[1756564325795,0.53405154,108820.0,108810.0,0.63528295]
[1756564327372,0.87969245,108820.0,108810.0,0.48076295]
[1756564327579,0.87969245,108820.0,108810.0,0.63528295]
[1756564328353,0.8624531,108820.0,108810.0,0.63528295]
[1756564328558,0.87969414,108820.0,108810.0,0.63528295]
[1756564330801,1.30799046,108820.0,108810.0,0.20966295]
[1756564331007,0.53512925,108820.0,108810.0,0.2262]
[1756564331217,1.57167479,108820.0,108810.0,0.07168]
[1756564331423,1.57167479,108820.0,108810.0,0.2262]
[1756564331869,1.57167479,108820.0,108810.0,0.07068]
[1756564332292,1.57167479,108820.0,108810.0,0.2252]
[1756564332498,1.57167479,108820.0,108810.0,0.07068]
[1756564332912,0.52382352,108800.0,108790.0,0.3239]
[1756564333119,1.23209492,108800.0,108790.0,0.57353163]
[1756564333315,0.54106456,108800.0,108790.0,0.57353163]
[1756564333521,0.88672552,108800.0,108790.0,0.57353163]
[1756564333741,0.91436252,108800.0,108790.0,0.57353163]
[1756564334387,0.89712148,108800.0,108790.0,0.41901163]
[1756564334616,0.89712148,108800.0,108790.0,0.57353163]
[1756564334825,0.55146052,108800.0,108790.0,0.41901163]
[1756564335033,0.89712148,108800.0,108790.0,0.32353163]
[1756564335703,0.89712148,108800.0,108790.0,0.16901163]
[1756564335935,0.89712148,108800.0,108790.0,0.32353163]
[1756564337223,0.55146052,108800.0,108790.0,0.59263163]
[1756564337460,0.55146052,108800.0,108790.0,0.77647205]
[1756564337461,0.027637,108800.0,108790.0,0.77647205]
[1756564337674,0.52946843,108810.0,108790.0,0.77647205]
[1756564337900,0.18380747,108810.0,108800.0,0.09620001]
[1756564338161,0.18380747,108810.0,108800.0,0.25272001]
[1756564339048,0.87512939,108810.0,108800.0,0.25272001]
[1756564341819,0.18380747,108810.0,108800.0,0.25272001]
[1756564342003,0.87512939,108810.0,108800.0,0.25272001]
[1756564342986,0.87512939,108810.0,108800.0,0.52182001]
[1756564344576,0.87512939,108810.0,108800.0,0.36730001]
[1756564344780,0.87512939,108810.0,108800.0,0.52182001]
[1756564344977,1.21512939,108810.0,108800.0,0.51982001]
[1756564345465,1.21512939,108810.0,108800.0,0.36530001]
[1756564345684,1.21512939,108810.0,108800.0,0.51982001]
[1756564346538,1.21512939,108810.0,108800.0,0.51088121]
[1756564346960,1.21512939,108810.0,108800.0,0.2691]
[1756564346961,1.23235171,108810.0,108800.0,0.2691]
[1756564347168,1.23235171,108810.0,108800.0,0.42362]
[1756564347169,1.26644841,108810.0,108800.0,0.42362]
[1756564348301,1.26644841,108810.0,108800.0,0.2691]
[1756564348515,1.26644841,108810.0,108800.0,0.42362]
[1756564348914,1.26644841,108810.0,108790.0,0.07081162]
[1756564348915,0.18382352,108800.0,108790.0,0.07081162]
[1756564349116,0.89882643,108800.0,108790.0,0.15465162]
[1756564349514,0.92646492,108800.0,108790.0,0.15465162]
[1756564350142,6.26646492,108800.0,108790.0,0.00013162]
[1756564350346,6.26646492,108800.0,108790.0,0.15465162]
[1756564350664,6.50928124,108800.0,108790.0,0.00013162]
[1756564350860,6.52367026,108800.0,108790.0,0.00013162]
[1756564351279,6.52366861,108800.0,108790.0,0.00113162]
[1756564351877,6.52566861,108800.0,108790.0,0.00013162]
[1756564352242,6.61864862,108800.0,108790.0,0.00013162]
[1756564352644,6.46712862,108800.0,108790.0,0.00013162]
[1756564352845,6.62164862,108800.0,108790.0,0.00013162]
[1756564355230,6.62164862,108800.0,108790.0,1e-08]
[1756564356473,0.18385732,108780.0,108770.0,0.3005243]
[1756564356654,0.89885407,108780.0,108770.0,0.3026243]
[1756564356855,0.95345366,108780.0,108770.0,0.3026243]
[1756564357069,0.98110066,108780.0,108770.0,0.22841]
[1756564357739,0.98110066,108780.0,108770.0,0.23051]
[1756564357866,0.98110066,108780.0,108770.0,0.07599]
[1756564358076,0.98110066,108780.0,108770.0,0.23055]
[1756564358673,0.92650107,108780.0,108770.0,0.23155]
[1756564360105,0.90282624,108780.0,108770.0,0.23155]
[1756564360246,0.92645451,108780.0,108770.0,0.23155]
[1756564360458,0.74259719,108780.0,108770.0,0.23155]
[1756564360656,0.92645451,108780.0,108770.0,0.23155]
[1756564365658,0.97480842,108780.0,108770.0,0.23155]
[1756564366102,0.92645451,108780.0,108770.0,0.23155]
[1756564368080,0.23513259,108780.0,108770.0,0.23155]
[1756564368302,0.57434948,108780.0,108770.0,0.23155]
[1756564368782,0.58079186,108780.0,108770.0,0.23155]
[1756564369623,0.2351309,108780.0,108770.0,0.23155]
[1756564369827,0.92645282,108780.0,108770.0,0.23155]
[1756564370454,0.58079186,108780.0,108770.0,0.23155]
[1756564370660,0.58079751,108780.0,108770.0,0.23155]
[1756564371254,0.58079751,108780.0,108770.0,0.07699]
[1756564371473,0.92645847,108780.0,108770.0,0.23155]
[1756564371622,0.89881147,108780.0,108770.0,0.23155]
[1756564372428,0.55315051,108780.0,108770.0,0.23155]
[1756564375827,0.55318402,108780.0,108770.0,0.23155]
[1756564377312,0.55318402,108780.0,108770.0,0.07699]
[1756564377517,0.55318402,108780.0,108770.0,0.23155]
[1756564377802,0.55318402,108780.0,108770.0,0.07699]
[1756564378011,0.55318402,108780.0,108770.0,0.23155]
[1756564380158,0.20752306,108780.0,108770.0,0.41542423]
[1756564380358,0.20752306,108780.0,108770.0,0.77750424]
[1756564380584,0.02366574,108780.0,108770.0,0.77750424]
[1756564380964,0.36369233,108780.0,108770.0,1.02750424]
[1756564381174,0.36372973,108780.0,108770.0,1.02750424]
[1756564381376,0.36372973,108780.0,108770.0,1.02650424]
[1756564381815,0.36472973,108780.0,108770.0,1.02650424]
[1756564382017,0.02472973,108780.0,108770.0,1.02650424]
[1756564382225,0.01825799,108780.0,108770.0,1.02650424]
[1756564382423,0.01725799,108780.0,108770.0,1.02650424]
[1756564382626,0.01725799,108780.0,108770.0,1.02750424]
[1756564383430,0.01725799,108780.0,108770.0,1.0694931]
[1756564383892,0.01724247,108780.0,108770.0,1.0694931]
[1756564384269,0.529502,108790.0,108770.0,1.0694931]
[1756564384524,0.89320217,108790.0,108780.0,0.09595001]
[1756564384839,0.89320217,108790.0,108780.0,0.09792001]
[1756564385863,0.89420217,108790.0,108780.0,0.09792001]
[1756564387225,0.88773849,108790.0,108780.0,0.09792001]
[1756564387439,0.88772978,108790.0,108780.0,0.36702001]
[1756564389155,0.88672978,108790.0,108780.0,0.36702001]
[1756564389372,0.88672978,108790.0,108780.0,0.36802001]
[1756564389580,0.54106882,108790.0,108780.0,0.36802001]
[1756564389786,0.88672978,108790.0,108780.0,0.36802001]
[1756564390418,0.91437078,108790.0,108780.0,0.36802001]
[1756564391077,0.56870214,108790.0,108780.0,0.36802001]
[1756564391274,0.9143631,108790.0,108780.0,0.36802001]
[1756564391500,0.9143631,108790.0,108780.0,0.55187733]
[1756564392715,0.9143631,108790.0,108780.0,0.36802001]
[1756564396548,0.56870214,108790.0,108780.0,0.55187733]
[1756564396761,0.9143631,108790.0,108780.0,0.55187733]
[1756564398399,0.56870214,108790.0,108780.0,0.55187733]
[1756564398609,0.9143631,108790.0,108780.0,0.55187733]
[1756564399174,0.367641,108790.0,108780.0,0.55187733]
[1756564399585,0.89714238,108790.0,108780.0,0.55187733]
[1756564399785,0.89714238,108790.0,108780.0,0.36802001]
[1756564400034,0.89714238,108790.0,108780.0,0.55187733]
[1756564401656,0.88556247,108790.0,108780.0,0.55187733]
[1756564403769,0.88556247,108790.0,108780.0,0.36802001]
[1756564403946,0.88556247,108790.0,108780.0,0.55187733]
[1756564405371,0.88554694,108790.0,108780.0,0.55187733]
[1756564406554,0.88554694,108790.0,108780.0,0.55165789]
[1756564407820,0.70170652,108790.0,108780.0,0.55165789]
[1756564408059,0.35606109,108790.0,108780.0,0.55165789]
[1756564408262,0.70170652,108790.0,108780.0,0.55165789]
[1756564408472,0.027641,108790.0,108780.0,0.55165789]
[1756564408678,0.027641,108790.0,108780.0,0.89730332]
[1756564408877,0.027641,108790.0,108780.0,0.55165789]
[1756564409081,0.37328643,108790.0,108780.0,0.95613789]
[1756564409291,0.027641,108790.0,108780.0,0.95613789]
[1756564412570,0.027641,108790.0,108780.0,0.80165789]
[1756564413063,0.027641,108790.0,108780.0,0.95613789]
[1756564414075,0.027641,108790.0,108780.0,0.80165789]
[1756564414283,0.027641,108790.0,108780.0,0.95613789]
[1756564415405,0.37328643,108790.0,108780.0,0.95613789]
[1756564416686,0.37328643,108790.0,108780.0,0.80165789]
[1756564416906,0.37328643,108790.0,108780.0,0.68703789]
[1756564417790,0.34564543,108790.0,108780.0,0.68703789]
[1756564418049,0.37328243,108790.0,108780.0,0.68703789]
[1756564418249,0.34564543,108790.0,108780.0,0.68703789]
[1756564419660,0.21150855,108800.0,108780.0,0.68703789]
[1756564419871,0.34564543,108790.0,108780.0,0.52958789]
[1756564420070,0.52948585,108790.0,108780.0,1.02388789]
[1756564420494,0.55715398,108800.0,108780.0,1.02712789]
[1756564420726,0.57439321,108800.0,108790.0,0.15448]
[1756564420938,0.57539321,108800.0,108790.0,0.25070001]
[1756564422000,0.57439321,108800.0,108790.0,0.25275001]
[1756564422404,0.57439321,108800.0,108790.0,0.25070001]
[1756564422741,0.57439312,108800.0,108790.0,0.25070001]
[1756564423863,0.57539312,108800.0,108790.0,0.25070001]
[1756564425602,0.57539312,108800.0,108790.0,0.25275001]
[1756564426020,0.57539312,108800.0,108790.0,0.52185001]
[1756564426486,0.57539312,108800.0,108790.0,0.70569043]
[1756564430559,0.22974769,108800.0,108790.0,0.70569043]